{"text_format":"3","workbook":"xlsx","n_sheets":8,"sheets":["Οδηγίες","Τακτικοί πελάτες ρουτίνας","Περιστασιακές γνωριμίες","Πιθανές προοπτικές","Πρόγραμμα δικτύωσης Q1","Πρόγραμμα δικτύωσης Q2","Πρόγραμμα δικτύωσης Q3","Πρόγραμμα δικτύωσης Q4"],"not_rendered":{"defined_names":7},"read":"whole","date_system":"1900"}

{"sheet":"Οδηγίες","index":0,"n_rows":17,"n_cols":5,"rows_kept":17,"merged":[[0,0,0,2],[1,1,1,6],[2,1,2,6],[3,1,3,6],[4,1,4,6],[5,1,5,6],[6,1,6,6],[7,1,7,6],[8,1,8,6],[9,1,9,6],[10,1,10,6],[11,1,11,6]]}
["Παρακολούθηση βάσης αφής",null,null,"Οδηγίες"]
[null,"1. Αποφασίστε σε ποια κατηγορία εμπίπτει η επαφή σας:"]
[null,"• Τακτικοί πελάτες ρουτίνας - άτομα με τα οποία θέλετε να διατηρείτε επαφή σε τακτική βάση"]
[null,"• Περιστασιακές γνωριμίες - άτομα με τα οποία θέλετε να βρίσκεστε μερικές φορές το χρόνο"]
[null,"• Πιθανές προοπτικές - άτομα/εταιρείες που θα θέλατε να διατηρήσετε στο αρχείο, προκειμένου να επικοινωνήσετε όταν βρεθεί η ευκαιρία"]
[null,"2. Ανοίξτε την αντίστοιχη καρτέλα φύλλου εργασίας."]
[null,"3. Εισαγάγετε τα στοιχεία τους (για να δημιουργήσετε μια νέα γραμμή σε ένα κελί, πατήστε το συνδυασμό πλήκτρων Alt+Enter στα Windows ή Option+Return σε Mac)."]
[null,"Ελέγξτε εδώ για οδηγίες προσθήκης νέας γραμμής που αφορούν εφαρμογές Excel για κινητές συσκευές."]
[null,"4. Στη στήλη Ημερομηνία παρακολούθησης, διαγράψτε το δείγμα ημερομηνία/τύπος και πληκτρολογήστε πότε θέλετε να επικοινωνήσετε μαζί τους, και, στη συνέχεια, πατήστε το πλήκτρο Enter."]
[null,"5. Η στήλη Ημερομηνία παρακολούθησης θα εμφανίζεται με κόκκινο χρώμα όταν η ημερομηνία είναι πολύ κοντά, με κίτρινο όταν πλησιάζει και με πράσινο όταν έχετε αρκετό χρόνο στη διάθεσή σας."]
[null,"6. Καθώς πλησιάζει η ημερομηνία παρακολούθησης, το χρώμα θα αλλάζει ανάλογα."]
[null,"7. Αφού επικοινωνήσετε με την επαφή σας, πληκτρολογήστε ΝΑΙ στη στήλη Τέλος; Θα απενεργοποιηθεί η ημερομηνία. "]
[null,"8. Εάν θέλετε να επικοινωνήσετε ξανά μαζί τους, αντικαταστήστε το ΝΑΙ με ΟΧΙ και πληκτρολογήστε μια νέα Ημερομηνία παρακολούθησης."]
[null,null,"Κόκκινο","Κίτρινο","Πράσινο"]
[null,"Τακτικοί πελάτες ρουτίνας","Σε 1-3 ημέρες","Σε 4-7 ημέρες","Σε 8-14+ ημέρες"]
[null,"Περιστασιακές γνωριμίες","Σε 1-7 ημέρες","Σε 8-45 ημέρες","Σε 46-90+ ημέρες"]
[null,"Πιθανές προοπτικές","Σε 1-14 ημέρες","Σε 15-60 ημέρες","Σε 60-120+ ημέρες"]

{"sheet":"Τακτικοί πελάτες ρουτίνας","index":1,"n_rows":7,"n_cols":8,"rows_kept":7,"merged":[[0,0,0,2]]}
["Παρακολούθηση βάσης αφής",null,null,"Τακτικοί πελάτες ρουτίνας"]
[]
["Όνομα","Εταιρικό","Στοιχεία επικοινωνίας","Τόπος συνάντησης","Σημειώσεις","Ημερομηνία παρακολούθησης","Ολοκληρώθηκε","Σημειώσεις από τη συνομιλία"]
["Φορτ Γκαρθ","Adventure Works","Διαχειριστής έργου\ngarth@adventure-works.com\n(234) 555-0134\nadventure-works.com\nlinkedin.com/in/garth-fort","Εμπορική έκθεση 2010","Ρωτήστε για την κόρη Σάντυ και πώς πάει η αναδιαμόρφωση. Έχει αποστροφή στις μεγάλες ομάδες και στο πικάντικο φαγητό.",{"$f":"TODAY()+8","v":"2021-07-23"},"ΟΧΙ"]
["Όνομα","Επωνυμία εταιρείας","Θέση εργασίας\nΔιεύθυνση email\nΑριθμός τηλεφώνου\nΤοποθεσία Web\nΣυνδέσεις προφίλ κοινωνικής δικτύωσης\n","Τοποθεσία","Συμπεριλάβετε τυχόν σημειώσεις που θέλετε να θυμάστε σχετικά με αυτό το άτομο. πού συναντηθήκατε, τι συζητήσατε, τι θέλετε να συζητήσετε την επόμενη φορά που θα μιλήσετε κ.λπ.",{"$f":"TODAY()-3","v":"2021-07-12"},"ΝΑΙ"]
["Όνομα","Επωνυμία εταιρείας","Θέση εργασίας\nΔιεύθυνση email\nΑριθμός τηλεφώνου\nΤοποθεσία Web\nΣυνδέσεις προφίλ κοινωνικής δικτύωσης\n","Τοποθεσία","Συμπεριλάβετε τυχόν σημειώσεις που θέλετε να θυμάστε σχετικά με αυτό το άτομο. πού συναντηθήκατε, τι συζητήσατε, τι θέλετε να συζητήσετε την επόμενη φορά που θα μιλήσετε κ.λπ.",{"$f":"TODAY()+-3","v":"2021-07-12"},"ΟΧΙ"]
["Όνομα","Επωνυμία εταιρείας","Θέση εργασίας\nΔιεύθυνση email\nΑριθμός τηλεφώνου\nΤοποθεσία Web\nΣυνδέσεις προφίλ κοινωνικής δικτύωσης\n","Τοποθεσία","Συμπεριλάβετε τυχόν σημειώσεις που θέλετε να θυμάστε σχετικά με αυτό το άτομο. πού συναντηθήκατε, τι συζητήσατε, τι θέλετε να συζητήσετε την επόμενη φορά που θα μιλήσετε κ.λπ.",{"$f":"TODAY()+6","v":"2021-07-21"},"ΟΧΙ"]

{"sheet":"Περιστασιακές γνωριμίες","index":2,"n_rows":7,"n_cols":8,"rows_kept":7,"merged":[[0,0,0,2]]}
["Παρακολούθηση βάσης αφής",null,null,"Περιστασιακές γνωριμίες"]
[]
["Όνομα","Εταιρικό","Στοιχεία επικοινωνίας","Τόπος συνάντησης","Σημειώσεις","Ημερομηνία παρακολούθησης","Ολοκληρώθηκε","Σημειώσεις από τη συνομιλία"]
["Φορτ Γκαρθ","Adventure Works","Υπεύθυνος πόρων\ngarth@adventure-works.com\n(434) 555-0123\nwww.adventure-works.com\nlinkedin.com/in/garth-fort","Διακοπές στο Οντάριο 2016","Εύχρηστο τόσο για την επαφή πρόσληψης όσο και για τις ερωτήσεις που αφορούν το μάρκετινγκ",{"$f":"TODAY()+90","v":"2021-10-13"},"ΟΧΙ"]
["Όνομα","Επωνυμία εταιρείας","Θέση εργασίας\nΔιεύθυνση email\nΑριθμός τηλεφώνου\nΤοποθεσία Web\nΣυνδέσεις προφίλ κοινωνικής δικτύωσης\n","Τοποθεσία","Συμπεριλάβετε τυχόν σημειώσεις που θέλετε να θυμάστε σχετικά με αυτό το άτομο. πού συναντηθήκατε, τι συζητήσατε, τι θέλετε να συζητήσετε την επόμενη φορά που θα μιλήσετε κ.λπ.",{"$f":"TODAY()-3","v":"2021-07-12"},"ΝΑΙ"]
["Όνομα","Επωνυμία εταιρείας","Θέση εργασίας\nΔιεύθυνση email\nΑριθμός τηλεφώνου\nΤοποθεσία Web\nΣυνδέσεις προφίλ κοινωνικής δικτύωσης\n","Τοποθεσία","Συμπεριλάβετε τυχόν σημειώσεις που θέλετε να θυμάστε σχετικά με αυτό το άτομο. πού συναντηθήκατε, τι συζητήσατε, τι θέλετε να συζητήσετε την επόμενη φορά που θα μιλήσετε κ.λπ.",{"$f":"TODAY()+-3","v":"2021-07-12"},"ΟΧΙ"]
["Όνομα","Επωνυμία εταιρείας","Θέση εργασίας\nΔιεύθυνση email\nΑριθμός τηλεφώνου\nΤοποθεσία Web\nΣυνδέσεις προφίλ κοινωνικής δικτύωσης\n","Τοποθεσία","Συμπεριλάβετε τυχόν σημειώσεις που θέλετε να θυμάστε σχετικά με αυτό το άτομο. πού συναντηθήκατε, τι συζητήσατε, τι θέλετε να συζητήσετε την επόμενη φορά που θα μιλήσετε κ.λπ.",{"$f":"TODAY()+40","v":"2021-08-24"},"ΟΧΙ"]

{"sheet":"Πιθανές προοπτικές","index":3,"n_rows":7,"n_cols":8,"rows_kept":7,"merged":[[0,0,0,2]]}
["Παρακολούθηση βάσης αφής",null,null,"Πιθανές προοπτικές"]
[]
["Όνομα","Εταιρικό","Στοιχεία επικοινωνίας","Τόπος συνάντησης","Σημειώσεις","Ημερομηνία παρακολούθησης","Ολοκληρώθηκε","Σημειώσεις από τη συνομιλία"]
["Φορτ Γκαρθ","Ελεύθερος επαγγελματίας","Σχεδίαση\nsomeone@example.com\n425-555-0123\nexample.com\nlinkedin.com/in/garth-fort","Αποφοίτηση γιού 2016","Πρόσφατος απόφοιτος - πολύ εξειδικευμένος. Μπορεί να είναι χρήσιμο για μελλοντικούς πελάτες.",{"$f":"TODAY()+89","v":"2021-10-12"},"ΟΧΙ"]
["Όνομα","Επωνυμία εταιρείας","Θέση εργασίας\nΔιεύθυνση email\nΑριθμός τηλεφώνου\nΤοποθεσία Web\nΣυνδέσεις προφίλ κοινωνικής δικτύωσης\n","Τοποθεσία","Συμπεριλάβετε τυχόν σημειώσεις που θέλετε να θυμάστε σχετικά με αυτό το άτομο. πού συναντηθήκατε, τι συζητήσατε, τι θέλετε να συζητήσετε την επόμενη φορά που θα μιλήσετε κ.λπ.",{"$f":"TODAY()-3","v":"2021-07-12"},"ΝΑΙ"]
["Όνομα","Επωνυμία εταιρείας","Θέση εργασίας\nΔιεύθυνση email\nΑριθμός τηλεφώνου\nΤοποθεσία Web\nΣυνδέσεις προφίλ κοινωνικής δικτύωσης\n","Τοποθεσία","Συμπεριλάβετε τυχόν σημειώσεις που θέλετε να θυμάστε σχετικά με αυτό το άτομο. πού συναντηθήκατε, τι συζητήσατε, τι θέλετε να συζητήσετε την επόμενη φορά που θα μιλήσετε κ.λπ.",{"$f":"TODAY()+-3","v":"2021-07-12"},"ΟΧΙ"]
["Όνομα","Επωνυμία εταιρείας","Θέση εργασίας\nΔιεύθυνση email\nΑριθμός τηλεφώνου\nΤοποθεσία Web\nΣυνδέσεις προφίλ κοινωνικής δικτύωσης\n","Τοποθεσία","Συμπεριλάβετε τυχόν σημειώσεις που θέλετε να θυμάστε σχετικά με αυτό το άτομο. πού συναντηθήκατε, τι συζητήσατε, τι θέλετε να συζητήσετε την επόμενη φορά που θα μιλήσετε κ.λπ.",{"$f":"TODAY()+30","v":"2021-08-14"},"ΟΧΙ"]

{"sheet":"Πρόγραμμα δικτύωσης Q1","index":4,"n_rows":20,"n_cols":6,"rows_kept":20,"merged":[[0,0,0,3],[2,0,2,3],[4,0,4,3],[14,5,17,5],[18,0,18,3]]}
["Πρόγραμμα επέκτασης δικτύου"]
["Οδηγίες"]
["Γράψτε πώς σκοπεύετε να επεκτείνετε το δίκτυό σας αυτό το τρίμηνο (π.χ., να κάνετε περισσότερα τηλέφωνα, να ταξιδέψετε περισσότερο κ.λπ.). Στη συνέχεια, κάθε φορά που θα λαμβάνετε μια νέα επαφή, αλλάξτε τον αριθμό των \"Πραγματικών επαφών που έγιναν\" για να παρακολουθείτε και να βλέπετε πόσο κοντά είστε στον στόχο σας."]
[]
["Πώς σκοπεύω να αναπτύξω το δίκτυό μου αυτό το τρίμηνο"]
["1. Πραγματοποίηση περισσότερων τηλεφωνικών κλήσεων"]
["2. Περισσότερα ταξίδια"]
[]
[]
[]
[]
[]
[]
["Τριμηνιαίος στόχος επαφής","Προθεσμία","Πραγματικές τριμηνιαίες επαφές που πραγματοποιήθηκαν","Αποτελέσματα"]
[20,{"$f":"TODAY()","v":"2021-07-15"},12,{"$f":"IF(tblGoals[[#This Row],[Τριμηνιαίος στόχος επαφής]]>0,tblGoals[[#This Row],[Πραγματικές τριμηνιαίες επαφές που πραγματοποιήθηκαν]]/tblGoals[[#This Row],[Τριμηνιαίος στόχος επαφής]],\"\")","v":{"v":0.6,"d":"60%"}},null,"0% - 25%\n26% - 50%\n51% - 75%\n76% - 100%\n\nΤροποποιήσεις χρώματος με βάση το ποσοστό που επιτεύχθηκε"]
[{"$nulls":3},{"$f":"IF(tblGoals[[#This Row],[Τριμηνιαίος στόχος επαφής]]>0,tblGoals[[#This Row],[Πραγματικές τριμηνιαίες επαφές που πραγματοποιήθηκαν]]/tblGoals[[#This Row],[Τριμηνιαίος στόχος επαφής]],\"\")","v":""}]
[{"$nulls":3},{"$f":"IF(tblGoals[[#This Row],[Τριμηνιαίος στόχος επαφής]]>0,tblGoals[[#This Row],[Πραγματικές τριμηνιαίες επαφές που πραγματοποιήθηκαν]]/tblGoals[[#This Row],[Τριμηνιαίος στόχος επαφής]],\"\")","v":""}]
[]
["Συλλογισμός όσον αφορά το αποτέλεσμα / Σημειώσεις για βελτίωση"]
["Πλησίασα. Εναλλακτικά, δοκιμάστε να καλέσετε την ώρα του μεσημεριανού."]

{"sheet":"Πρόγραμμα δικτύωσης Q2","index":5,"n_rows":20,"n_cols":6,"rows_kept":20,"merged":[[0,0,0,3],[2,0,2,3],[4,0,4,3],[14,5,17,5],[18,0,18,3]]}
["Πρόγραμμα επέκτασης δικτύου"]
["Οδηγίες"]
["Γράψτε πώς σκοπεύετε να επεκτείνετε το δίκτυό σας αυτό το τρίμηνο (π.χ., να κάνετε περισσότερα τηλέφωνα, να ταξιδέψετε περισσότερο κ.λπ.). Στη συνέχεια, κάθε φορά που θα λαμβάνετε μια νέα επαφή, αλλάξτε τον αριθμό των \"Πραγματικών επαφών που έγιναν\" για να παρακολουθείτε και να βλέπετε πόσο κοντά είστε στον στόχο σας."]
[]
["Πώς σκοπεύω να αναπτύξω το δίκτυό μου αυτό το τρίμηνο"]
["1. Πραγματοποίηση περισσότερων τηλεφωνικών κλήσεων"]
["2. Περισσότερα ταξίδια"]
[]
[]
[]
[]
[]
[]
["Τριμηνιαίος στόχος επαφής","Προθεσμία","Πραγματικές τριμηνιαίες επαφές που πραγματοποιήθηκαν","Αποτελέσματα"]
[20,{"$f":"TODAY()","v":"2021-07-15"},12,{"$f":"IF(tblGoals3[[#This Row],[Τριμηνιαίος στόχος επαφής]]>0,tblGoals3[[#This Row],[Πραγματικές τριμηνιαίες επαφές που πραγματοποιήθηκαν]]/tblGoals3[[#This Row],[Τριμηνιαίος στόχος επαφής]],\"\")","v":{"v":0.6,"d":"60%"}},null,"0% - 25%\n26% - 50%\n51% - 75%\n76% - 100%\n\nΤροποποιήσεις χρώματος με βάση το ποσοστό που επιτεύχθηκε"]
[{"$nulls":3},{"$f":"IF(tblGoals3[[#This Row],[Τριμηνιαίος στόχος επαφής]]>0,tblGoals3[[#This Row],[Πραγματικές τριμηνιαίες επαφές που πραγματοποιήθηκαν]]/tblGoals3[[#This Row],[Τριμηνιαίος στόχος επαφής]],\"\")","v":""}]
[{"$nulls":3},{"$f":"IF(tblGoals3[[#This Row],[Τριμηνιαίος στόχος επαφής]]>0,tblGoals3[[#This Row],[Πραγματικές τριμηνιαίες επαφές που πραγματοποιήθηκαν]]/tblGoals3[[#This Row],[Τριμηνιαίος στόχος επαφής]],\"\")","v":""}]
[]
["Συλλογισμός όσον αφορά το αποτέλεσμα / Σημειώσεις για βελτίωση"]
["Πλησίασα. Εναλλακτικά, δοκιμάστε να καλέσετε την ώρα του μεσημεριανού."]

{"sheet":"Πρόγραμμα δικτύωσης Q3","index":6,"n_rows":20,"n_cols":6,"rows_kept":20,"merged":[[0,0,0,3],[2,0,2,3],[4,0,4,3],[14,5,17,5],[18,0,18,3]]}
["Πρόγραμμα επέκτασης δικτύου"]
["Οδηγίες"]
["Γράψτε πώς σκοπεύετε να επεκτείνετε το δίκτυό σας αυτό το τρίμηνο (π.χ., να κάνετε περισσότερα τηλέφωνα, να ταξιδέψετε περισσότερο κ.λπ.). Στη συνέχεια, κάθε φορά που θα λαμβάνετε μια νέα επαφή, αλλάξτε τον αριθμό των \"Πραγματικών επαφών που έγιναν\" για να παρακολουθείτε και να βλέπετε πόσο κοντά είστε στον στόχο σας."]
[]
["Πώς σκοπεύω να αναπτύξω το δίκτυό μου αυτό το τρίμηνο"]
["1. Πραγματοποίηση περισσότερων τηλεφωνικών κλήσεων"]
["2. Περισσότερα ταξίδια"]
[]
[]
[]
[]
[]
[]
["Τριμηνιαίος στόχος επαφής","Προθεσμία","Πραγματικές τριμηνιαίες επαφές που πραγματοποιήθηκαν","Αποτελέσματα"]
[20,{"$f":"TODAY()","v":"2021-07-15"},12,{"$f":"IF(tblGoals34[[#This Row],[Τριμηνιαίος στόχος επαφής]]>0,tblGoals34[[#This Row],[Πραγματικές τριμηνιαίες επαφές που πραγματοποιήθηκαν]]/tblGoals34[[#This Row],[Τριμηνιαίος στόχος επαφής]],\"\")","v":{"v":0.6,"d":"60%"}},null,"0% - 25%\n26% - 50%\n51% - 75%\n76% - 100%\n\nΤροποποιήσεις χρώματος με βάση το ποσοστό που επιτεύχθηκε"]
[{"$nulls":3},{"$f":"IF(tblGoals34[[#This Row],[Τριμηνιαίος στόχος επαφής]]>0,tblGoals34[[#This Row],[Πραγματικές τριμηνιαίες επαφές που πραγματοποιήθηκαν]]/tblGoals34[[#This Row],[Τριμηνιαίος στόχος επαφής]],\"\")","v":""}]
[{"$nulls":3},{"$f":"IF(tblGoals34[[#This Row],[Τριμηνιαίος στόχος επαφής]]>0,tblGoals34[[#This Row],[Πραγματικές τριμηνιαίες επαφές που πραγματοποιήθηκαν]]/tblGoals34[[#This Row],[Τριμηνιαίος στόχος επαφής]],\"\")","v":""}]
[]
["Συλλογισμός όσον αφορά το αποτέλεσμα / Σημειώσεις για βελτίωση"]
["Πλησίασα. Εναλλακτικά, δοκιμάστε να καλέσετε την ώρα του μεσημεριανού."]

{"sheet":"Πρόγραμμα δικτύωσης Q4","index":7,"n_rows":20,"n_cols":6,"rows_kept":20,"merged":[[0,0,0,3],[2,0,2,3],[4,0,4,3],[14,5,17,5],[18,0,18,3]]}
["Πρόγραμμα επέκτασης δικτύου"]
["Οδηγίες"]
["Γράψτε πώς σκοπεύετε να επεκτείνετε το δίκτυό σας αυτό το τρίμηνο (π.χ., να κάνετε περισσότερα τηλέφωνα, να ταξιδέψετε περισσότερο κ.λπ.). Στη συνέχεια, κάθε φορά που θα λαμβάνετε μια νέα επαφή, αλλάξτε τον αριθμό των \"Πραγματικών επαφών που έγιναν\" για να παρακολουθείτε και να βλέπετε πόσο κοντά είστε στον στόχο σας."]
[]
["Πώς σκοπεύω να αναπτύξω το δίκτυό μου αυτό το τρίμηνο"]
["1. Πραγματοποίηση περισσότερων τηλεφωνικών κλήσεων"]
["2. Περισσότερα ταξίδια"]
[]
[]
[]
[]
[]
[]
["Τριμηνιαίος στόχος επαφής","Προθεσμία","Πραγματικές τριμηνιαίες επαφές που πραγματοποιήθηκαν","Αποτελέσματα"]
[20,{"$f":"TODAY()","v":"2021-07-15"},12,{"$f":"IF(tblGoals348[[#This Row],[Τριμηνιαίος στόχος επαφής]]>0,tblGoals348[[#This Row],[Πραγματικές τριμηνιαίες επαφές που πραγματοποιήθηκαν]]/tblGoals348[[#This Row],[Τριμηνιαίος στόχος επαφής]],\"\")","v":{"v":0.6,"d":"60%"}},null,"0% - 25%\n26% - 50%\n51% - 75%\n76% - 100%\n\nΤροποποιήσεις χρώματος με βάση το ποσοστό που επιτεύχθηκε"]
[{"$nulls":3},{"$f":"IF(tblGoals348[[#This Row],[Τριμηνιαίος στόχος επαφής]]>0,tblGoals348[[#This Row],[Πραγματικές τριμηνιαίες επαφές που πραγματοποιήθηκαν]]/tblGoals348[[#This Row],[Τριμηνιαίος στόχος επαφής]],\"\")","v":""}]
[{"$nulls":3},{"$f":"IF(tblGoals348[[#This Row],[Τριμηνιαίος στόχος επαφής]]>0,tblGoals348[[#This Row],[Πραγματικές τριμηνιαίες επαφές που πραγματοποιήθηκαν]]/tblGoals348[[#This Row],[Τριμηνιαίος στόχος επαφής]],\"\")","v":""}]
[]
["Συλλογισμός όσον αφορά το αποτέλεσμα / Σημειώσεις για βελτίωση"]
["Πλησίασα. Εναλλακτικά, δοκιμάστε να καλέσετε την ώρα του μεσημεριανού."]